Cogmind - Beta 10.2 @@@ ROGUE MODE // 2021.07.21 @ 11:40:32 Player: Demise Result: Destroyed by D-53 Grenadier with Mini Grenade Launcher Performance ------------- Evolutions (0) 0 Regions Visited (4) 800 Robots Destroyed (37) 185 Value Destroyed (854) 854 Prototype IDs (25) 500 Alien Tech Used (0) 0 Bonus (398) 398 TOTAL SCORE: 2737 Bonus ------- High Alert Combat Kills 98 Aligned with FarCom 300 Cogmind --------- Core Integrity 0/250 Matter 300/300 Energy 125/125 System Corruption 0% Temperature Cool (0) Movement Treading (220) Ox3 Location -9/Mines Parts ------- > --- POWER (1) -------- Light Ion Engine > --- PROPULSION (2) --- Light Treads > --- UTILITY (2) ------ High-capacity Storage Unit High-capacity Storage Unit > --- WEAPON (2) ------- Light Assault Rifle Light Assault Rifle > --- INVENTORY (20) --- Light Treads Improved Heat Sink Large Storage Unit Superbattery (2000) High-capacity Matter Pod (200) Experimental Sensor Array Signal Interpreter Improved Targeting Computer Hacking Suite High-powered Tractor Beam Light Assault Rifle Light Assault Rifle Grenade Launcher Grenade Launcher Rocket Launcher Mining Laser Stasis Trap (100%) Peak State ------------ > --- POWER ------------ Light Nuclear Core > --- PROPULSION ------- Light Treads Light Treads > --- UTILITY ---------- Large Storage Unit Visual Processing Unit > --- WEAPON ----------- Small Laser Light Assault Rifle > --- INVENTORY -------- Light Ion Engine Light Ion Engine Light Treads Improved Heat Sink Hacking Suite Grenade Launcher Mining Laser [Rating: 11] Favorites ----------- Power Light Ion Engine Engine Light Ion Engine Power Core Light Nuclear Core Propulsion Light Treads Treads Light Treads Utility High-capacity Storage Unit Device Heat Sink Storage High-capacity Storage Unit Processor Visual Processing Unit Weapon Light Assault Rifle Energy Gun Small Laser Ballistic Gun Light Assault Rifle Ballistic Cannon Light Cannon Launcher Grenade Launcher Build | -11 -10 -10 -10 -9 ------- Run | Scr Mat Min Exi Min Slots Evolved . | . . . . . Power . | . . . . . Propulsion . | . . . . . Utility . | . . . . . Weapon . | . . . . . Parts Attached 37 | 4 26 5 2 . Power 6 | . 5 1 . . Engine 5 | . 4 1 . . Core 1 | . 1 . . . Reactor . | . . . . . Propulsion 5 | 2 2 1 . . Treads 5 | 2 2 1 . . Leg . | . . . . . Wheel . | . . . . . Hover . | . . . . . Flight . | . . . . . Utility 7 | . 5 . 2 . Device 1 | . 1 . . . Storage 4 | . 2 . 2 . Processor 2 | . 2 . . . Hackware . | . . . . . Protection . | . . . . . Artifact . | . . . . . Weapon 19 | 2 14 3 . . Energy Gun 6 | 2 4 . . . Energy Cannon . | . . . . . Ballistic Gun 8 | . 5 3 . . Ballistic Cannon 2 | . 2 . . . Launcher 3 | . 3 . . . Special Weapon . | . . . . . Impact Weapon . | . . . . . Slashing Weapon . | . . . . . Piercing Weapon . | . . . . . Special Melee Weapon . | . . . . . Unidentified Prototypes . | . . . . . Parts Lost 10 | . 5 4 . 1 Power 1 | . . 1 . . Propulsion 2 | . . 1 . 1 Utility . | . . . . . Weapon 7 | . 5 2 . . Highest Loss Streak 2 | . 2 2 . 1 Average Slot Usage (%) 95 | . 89 99 100 100 Engine 9 | . 2 13 14 14 Core 2 | . 7 . . . Treads 27 | . 27 27 28 28 Storage 20 | . 9 28 28 28 Processor 5 | . 13 . . . Energy Gun 3 | . 9 . . . Ballistic Gun 22 | . 13 28 28 28 Ballistic Cannon 1 | . 3 . . . Naked Turns . | . . . . . Heaviest Build 69 | 3 35 29 69 69 Greatest Support 40 | 20 40 40 40 40 Greatest Overweight (x) 1 | . 1 1 1 1 Average Overweight (x) . | . . . . 1 Largest Inventory Capacity 20 | 4 14 14 20 20 Average Capacity 13 | 4 7 14 18 20 Most Carried 18 | 4 14 14 16 18 Average Carried 11 | 3 7 12 15 17 Final Capacity 20 | 4 14 14 20 20 Final Carried 17 | 4 14 14 16 17 Class Distribution -------------------- 63% | Mutant 27% | Hauler-Mutant 8% | Scavenger-Mutant Dominant Class ---------------- Mutant | -10/Materials Mutant | -10/Mines Hauler-Mutant | -10/Exiles Hauler-Mutant | -9/Mines Resources | -11 -10 -10 -10 -9 ----------- Run | Scr Mat Min Exi Min Matter Collected 811 | 240 410 117 40 4 Remotely . | . . . . . Salvage Created 1085 | 141 631 313 . . Parts 69 | 10 45 14 . . Haulers Intercepted 2 | . 2 . . . Recyclers Shooed . | . . . . . Parts Field Recycled . | . . . . . Retrieved Matter . | . . . . . Parts Self-Destructed . | . . . . . Prevented . | . . . . . Kills | -11 -10 -10 -10 -9 ------- Run | Scr Mat Min Exi Min Combat Hostiles Destroyed 23 | . 14 9 . . Melee 1 | . . 1 . . Guns 16 | . 8 8 . . AOE 6 | . 6 . . . Classes Destroyed 8 | 2 6 . . . Builder 2 | . 2 . . . Tunneler 3 | 3 . . . . Hauler 2 | . 2 . . . Recycler 2 | 1 1 . . . Operator 2 | . 2 . . . Watcher 3 | . 3 . . . Swarmer 5 | . 2 3 . . Grunt 18 | . 12 6 . . Best Kill Streak 7 | 4 7 3 . . Combat Bots Only 5 | . 5 3 . . Max Kills in Single Turn 3 | 1 3 1 . . Gunslinging . | . . . . . Exploded 2 | . 2 . . . Melee 1 | . . 1 . . Uniques/NPCs Destroyed . | . . . . . Combat | -11 -10 -10 -10 -9 -------- Run | Scr Mat Min Exi Min Damage Taken 1477 | . 694 606 . 177 Core 256 | . 101 121 . 34 Absorbed by Shields . | . . . . . Core Remaining (%) 100 | 100 . . . . Volleys Fired 131 | 12 75 41 . 3 Largest 2 | 2 2 2 . 2 Hottest 90 | 90 90 40 . 40 Shots Fired 233 | 24 123 80 . 6 Gun 221 | 24 111 80 . 6 Cannon 2 | . 2 . . . Launcher 10 | . 10 . . . Special . | . . . . . Kinetic 157 | . 71 80 . 6 Thermal 66 | 24 42 . . . Explosive 10 | . 10 . . . Electromagnetic . | . . . . . Robot Hit Streak 21 | 10 21 17 . 3 Robot Miss Streak 4 | 4 3 2 . 1 Penetration Max . | . . . . . Secondary Targets . | . . . . . Shots Hit Robots 178 | 13 92 69 . 4 Core Hits 75 | 5 44 26 . . Critical Hits 1 | . 1 . . . Critical Kills 1 | . 1 . . . Critical Parts Destroyed . | . . . . . Melee Attacks . | . . . . . Impact . | . . . . . Slashing . | . . . . . Piercing . | . . . . . Sneak Attacks . | . . . . . Combat Hostiles . | . . . . . Follow-up Attacks . | . . . . . Damage Inflicted 2254 | 177 1499 553 . 25 Guns 1483 | 177 736 545 . 25 Cannons 16 | . 16 . . . Explosions 745 | . 745 . . . Melee . | . . . . . Ramming 10 | . 2 8 . . Kinetic 1005 | . 435 545 . 25 Thermal 494 | 177 317 . . . Explosive 745 | . 745 . . . Electromagnetic . | . . . . . Impact . | . . . . . Slashing . | . . . . . Piercing . | . . . . . Highest Corruption . | . . . . . Average Corruption . | . . . . . Corruption Purged . | . . . . . Overload Shots . | . . . . . Overflow Damage . | . . . . . Projectiles . | . . . . . Explosions . | . . . . . Melee . | . . . . . Knockbacks . | . . . . . Impact . | . . . . . Kinetic . | . . . . . Secondary . | . . . . . Self-Inflicted Damage 1 | . 1 . . . Shots . | . . . . . Rammed 4 | . 1 3 . . Targets Rammed 5 | . 2 3 . . Kicked . | . . . . . Crushed 1 | . 1 . . . Highest Temperature 100 | 100 78 60 . . Average Temperature 23 | 45 17 17 . . Received Heat Transfer 657 | . 357 300 . . Siege Activations . | . . . . . Robots Corrupted . | . . . . . Combat Hostiles . | . . . . . Parts Fried . | . . . . . Impact Corruptions . | . . . . . Robots Melted . | . . . . . Combat Hostiles . | . . . . . Parts Melted 1 | 1 . . . . Heat Transferred 1230 | 459 771 . . . Parts Sabotaged . | . . . . . Parts Stolen . | . . . . . Parts Stripped . | . . . . . Power Chain Reactions . | . . . . . Missiles Intercepted . | . . . . . Alert | -11 -10 -10 -10 -9 ------- Run | Scr Mat Min Exi Min Peak Influence 542 | 20 542 362 . 15 Initial 152 | . 13 152 . . Average 256 | 6 406 185 . . Maximum Alert Level 2 | . 2 1 . . Low Security (%) 46 | 100 10 67 . 100 Level 1 27 | . 34 32 . . Level 2 26 | . 54 . . . Level 3 . | . . . . . Level 4 . | . . . . . Level 5 . | . . . . . High Security . | . . . . . Max Security . | . . . . . Squads Dispatched 4 | . 4 . . . Investigation 2 | . 2 . . . Extermination . | . . . . . Reinforcement 2 | . 2 . . . Assault . | . . . . . Garrison . | . . . . . Intercept . | . . . . . Construction Impeded . | . . . . . Haulers Reinforced . | . . . . . Stealth | -11 -10 -10 -10 -9 --------- Run | Scr Mat Min Exi Min Distress Signals 3 | . 3 . . . Communications Jammed . | . . . . . Distress Signals . | . . . . . Times Spotted 63 | . 34 11 . 18 Peak Tracking Total 18 | . 5 3 . 18 Tactical Retreats 6 | . 4 2 . . Traps | -11 -10 -10 -10 -9 ------- Run | Scr Mat Min Exi Min Traps Triggered 2 | . 2 . . . Indirectly . | . . . . . Trap Hack Attempts . | . . . . . Triggered . | . . . . . Disarmed . | . . . . . Reprogrammed . | . . . . . Reused . | . . . . . Traps Extracted . | . . . . . Installed 1 | . . . . 1 Triggered . | . . . . . Machines | -11 -10 -10 -10 -9 ---------- Run | Scr Mat Min Exi Min Machines Disabled . | . . . . . Max in Single Turn . | . . . . . Machines Sabotaged . | . . . . . Garrisons Compromised . | . . . . . Overloaded Fab Kills . | . . . . . Fab Network Shutdowns . | . . . . . Hacking | -11 -10 -10 -10 -9 --------- Run | Scr Mat Min Exi Min Machines Accessed 10 | . 8 . 2 . Terminals 5 | . 5 . . . Fabricators . | . . . . . Repair Stations 1 | . 1 . . . Recycling Units 2 | . 2 . . . Scanalyzers . | . . . . . Garrison Access . | . . . . . Total Hacks 36 | . 34 . 2 . Successful 21 | . 19 . 2 . Failed 14 | . 14 . . . Catastrophic . | . . . . . Database Lockouts 1 | . 1 . . . Manual 27 | . 26 . 1 . Terminals 22 | . 22 . . . Fabricators . | . . . . . Repair Stations 3 | . 3 . . . Recycling Units 9 | . 9 . . . Scanalyzers . | . . . . . Garrison Access . | . . . . . Terminal Hacks 5 | . 3 . 2 . Record 1 | . . . 1 . Robot Analysis 2 | . 2 . . . Prototype ID Bank 1 | . 1 . . . EX-Prototype ID Bank 1 | . . . 1 . Fabricator Hacks . | . . . . . Repair Station Hacks 3 | . 3 . . . Scan Component 2 | . 2 . . . Repair 1 | . 1 . . . Recycling Unit Hacks 2 | . 2 . . . Retrieve Components 2 | . 2 . . . Scanalyzer . | . . . . . Garrison Access Hacks . | . . . . . Unauthorized Hacks 11 | . 11 . . . Terminals 7 | . 7 . . . Assimilate 1 | . 1 . . . Botnet 5 | . 5 . . . Operators 1 | . 1 . . . Fabricators . | . . . . . Repair Stations . | . . . . . Recycling Units 4 | . 4 . . . Reject 1 | . 1 . . . Recyclers 1 | . 1 . . . Mask 1 | . 1 . . . Tunnel 1 | . 1 . . . Scanalyzers . | . . . . . Garrison Access . | . . . . . Data Cores Recovered . | . . . . . Used . | . . . . . Hacking Detections 8 | . 8 . . . Full Trace Events 5 | . 5 . . . Feedback Events . | . . . . . Feedback Blocked . | . . . . . Robot Schematics Acquired . | . . . . . Robots Built . | . . . . . Matter . | . . . . . Time . | . . . . . Total Robot Build Rating . | . . . . . Part Schematics Acquired . | . . . . . Parts Built . | . . . . . Matter . | . . . . . Time . | . . . . . Total Part Build Rating . | . . . . . Parts Repaired 1 | . 1 . . . Time 26 | . 26 . . . Parts Recycled . | . . . . . Recycled Matter . | . . . . . Retrieved Matter . | . . . . . Retrieved Components 5 | . 5 . . . Parts Scanalyzed . | . . . . . Part Schematics Acquired . | . . . . . Parts Damaged . | . . . . . Bothacking | -11 -10 -10 -10 -9 ------------ Run | Scr Mat Min Exi Min Used RIF Installer . | . . . . . Robots Hacked . | . . . . . Non-combat . | . . . . . Combat . | . . . . . Robot Hacks Applied . | . . . . . Relay Couplers Released . | . . . . . Robots Rewired . | . . . . . Allies Hacked . | . . . . . Hacks Repelled . | . . . . . Allies | -11 -10 -10 -10 -9 -------- Run | Scr Mat Min Exi Min Total Allies 6 | . 1 2 . 3 Largest Group 3 | . 1 2 2 3 Highest-Rated Group 51 | . 10 51 51 40 Highest-Rated Ally 31 | . 10 31 31 16 Total Orders . | . . . . . Ally Attacks 8 | . . . . 8 Total Damage 113 | . . . . 113 Kills . | . . . . . Allies Corrupted . | . . . . . Allies Melted . | . . . . . Intel | -11 -10 -10 -10 -9 ------- Run | Scr Mat Min Exi Min Robot Analysis Total 2 | . 2 . . . Derelict Logs Recovered 3 | . . 2 . 1 Drone Launches . | . . . . . Drone Recoveries . | . . . . . Exploration | -11 -10 -10 -10 -9 ------------- Run | Scr Mat Min Exi Min Turns Passed 3517 | 69 1381 965 630 472 Spaces Moved 2338 | 40 1171 518 356 253 Core 769 | 39 730 . . . Treads 1569 | 1 441 518 356 253 Legs . | . . . . . Wheels . | . . . . . Hover . | . . . . . Flight . | . . . . . Fastest Speed 50 | 50 50 160 160 180 Average Speed 129 | 52 93 160 175 180 Slowest Speed 180 | 160 160 180 180 180 Overloaded Moves . | . . . . . Propulsion Burnouts . | . . . . . Robots Hopped . | . . . . . Cave-ins Triggered . | . . . . . Exploration Rate (%) 67 | 3 96 88 69 82 Regions Visited 4 Branch Regions 3 Pre-discovered Areas 4 | . 1 2 1 . Known Exits Taken 2 | . 1 1 . . Unknown Exits Taken 2 | 1 . . 1 . Scrap Searched 4 | . . 1 . 3 Spaces Dug . | . . . . . Terrain Destroyed 57 | . 57 . . . Melee . | . . . . . Projectile . | . . . . . AOE 57 | . 57 . . . Terrain Rammed . | . . . . . Walls Destroyed . | . . . . . Machines Disabled . | . . . . . Actions | -11 -10 -10 -10 -9 --------- Run | Scr Mat Min Exi Min Total 2625 | 61 1350 588 361 265 Wait 63 | . 41 17 . 5 Move 2334 | 39 1170 517 355 253 Hop . | . . . . . Pick Up 30 | 5 17 4 2 2 Fast Attach 17 | 4 13 . . . Attach 11 | . 7 4 . . Detach 8 | . 8 . . . Swap 9 | . 6 1 2 . Drop 16 | 1 11 1 2 1 Fire 131 | 12 75 41 . 3 Melee . | . . . . . Ram 1 | . 1 . . . Kick . | . . . . . Crush 4 | . 1 3 . . Escape Stasis . | . . . . . Rewire . | . . . . . Trap 1 | . . . . 1 Miscellaneous . | . . . . . Route ------- -11/Scrapyard -10/Materials (discovered 5 exits: *Mat x3 / *Min x2) -10/Mines (discovered 3 exits: *Mat x2 / *Exi) -10/Exiles -9/Mines (discovered 2 exits: [*Mat x2]) History --------- Turn | Location | Event 11 | -11/Scrapyard | Discovered new exit (range 15) 70 | -11/Scrapyard | Entered Materials 165 | -10/Materials | Discovered new exit (range 8) 167 | -10/Materials | Identified exit to Materials 319 | -10/Materials | Build established: Mutant 365 | -10/Materials | Central database locked down 460 | -10/Materials | Discovered new exit (range 12) 465 | -10/Materials | Identified exit to Mines 495 | -10/Materials | Discovered exit to Materials (range 11) 634 | -10/Materials | Repaired Lgt. Treads 1014 | -10/Materials | Build established: Scavenger-Mutant 1076 | -10/Materials | Discovered exit to Mines (range 14) 1102 | -10/Materials | Discovered exit to Materials (range 3) 1322 | -10/Materials | Build established: Mutant 1451 | -10/Materials | Entered Mines 1458 | -10/Mines | Core integrity fell below 50% 1609 | -10/Mines | Discovered exit to Materials (range 4) 1637 | -10/Mines | Core integrity fell below 20% 1823 | -10/Mines | Found a damaged Exp. Sensor Array with a note attached 1826 | -10/Mines | Found Prototype Device 1938 | -10/Mines | Discovered exit to Materials (range 10) 1966 | -10/Mines | Learned location of Storage (-8) 2081 | -10/Mines | Found a hidden stash of uninstalled traps 2113 | -10/Mines | Identified exit to Exiles 2408 | -10/Mines | Deemed a non-threat by the Exiles lab entrance 2416 | -10/Mines | Entered Exiles 2416 | -10/Exiles | Accompanied by 2 allies 2446 | -10/Exiles | Led the pair of lost Derelicts to a safe place 2456 | -10/Exiles | Met 8R-AWN 2484 | -10/Exiles | Met EX-HEX 2592 | -10/Exiles | Met EX-DEC 2621 | -10/Exiles | Learned location of Zion (-7) 2650 | -10/Exiles | Met EX-BIN 2677 | -10/Exiles | Aligned with FarCom system 2679 | -10/Exiles | Given EX-Vault access code 2722 | -10/Exiles | Opened EX-Vault 2732 | -10/Exiles | Found Superbattery 2770 | -10/Exiles | Warned to stay clear of 0b10 Research branches 2845 | -10/Exiles | Build established: Hauler-Mutant 3031 | -10/Exiles | Discovered new exit (range 10) 3046 | -10/Exiles | Left Exiles lab with Superbattery 3046 | -10/Exiles | Entered Mines 3057 | -9/Mines | Learned Materials non-interactive machine intel 3064 | -9/Mines | Discovered new exit (range 9) 3203 | -9/Mines | Assisted by bots powering up and referring to "LRC-V3" 3420 | -9/Mines | Received a Rocket Launcher from a helpful Derelict 3428 | -9/Mines | Discovered new exit (range 6) 3485 | -9/Mines | Assembled infested the area 3490 | -9/Mines | Assisted by a Guerilla fighting off Assembled 3517 | -9/Mines | Met a Derelict shopkeep closing up shop 3518 | -9/Mines | Destroyed by D-53 Grenadier with Mini Grenade Launcher Last Messages --------------- 03500_ as-71970 destroyed. 03500_ A-02 Transporter destroyed. 03500_ as-38852 destroyed. 03500_ as-85161 destroyed. 03500_ T-07 Excavator destroyed. 03501_ Destroyed Shock Absorption System. 03502_ Trooper 2a Aluminum Leg severed. 03502_ as-48359 destroyed. 03502_ as-94874 destroyed. 03503_ Trooper 2a destroyed. 03503_ as-06329 destroyed. 03507_ as-04125 destroyed. 03510_ Dropped Stasis Trap. 03511_ Installed Stasis Trap. 03516_ K-01 Serf destroyed. 03516_ D-53 Grenadier destroyed. 03517_ H0-2PH(g): "Sorry, the Unaware have moved into these parts and I'm closing up shop. No more sales from me!" 03517_ R-06 Scavenger collects Particle Gun. 03518_ Lgt. Treads destroyed. Map ----- +----------------------------------------------------+ | ????# ###????# """ #???????????????????????? | | ????# #??????## """ #???????????????????????? | | ????# #??####### """ ##???????????????????????? | | #???# #??# ##????????????????????????? | | #??# #??# ##### ###?????????????????????????? | | #?# #??# #???## ##???????????????????????????? | | ## #??# #????## ##????????????????????????????? | | # #### #?????# #?????????????????????????????? | | # #?????# #######???????????????????????? | | # #### ###?????# #???????????????????????? | | # #??# #???????# ##### #????????###????????????? | | # ##?# #???????# #???# #???????## #????????????? | | # ### #???????# ##??# #####???# ##????????##?? | | # #???????# #??# #???# ##??????# #?? | | ## #### #??????# #?##### #???# ##??### #?? | | #####??# #??????# #????# #???## #### < #?? | | #?????# #??????# #???# #????# ## ## #??? | | #?????# #??????# #???# ###### ### ###??? | | !##????# #??????### ##???# #?# ##????? | | ###??# #?????????####????##########?## ##????? | | ##?# #?????????????????????????????## ###??? | | ### #????????????????###???????##### ##?? | | #?????????????### ##?????## ## #?? | | # ! #### #????????????## #?????# ! #?? | | ??# #??# ?????????????# #?????# !% #?? | | ????#?## ##???????????# @ #????## ##### ##?? | | ?????? #??????????## d ##### ##????##??? | | ??????# ###??????### % ##?????????? | | ??????# ??##### ##??????????? | | ??????# ?# ##### ###???????????? | | ??? ### ## %] #???# #?????????????? | | ?? "%" #####???# #?????????????? | | ? " %| #???????# #?????????????? | | ????? # % #??????? ?????????????? | | ?????### ???????? ?????????????? | | # #???????## ???????? ?????????????? | | ?#?#????????## r ??????? ?????????????? | | ?????????????#### ??????? ?????????????? | | ??????????????????% !g ???????? ?????????????? | | ?????????????????#] #???????? ?????????????? | | ?????????????????# % ???????# ?????????????? | | ?????????????????## ??????#? ?????????????? | | ???????????????????#%[ ???????# #?????????????? | | ???????????????????## ??????? ??????????????? | | ?????????????????????=! ?????????????????????? | | ?????????????????????# # ????????????????????? | | ??????????????????????## ####???????????????????? | | ???????????????????????? #??????????????????????? | | ????????????????????????? #??????????????????????? | | ?????????????????????????????????????????????????? | +----------------------------------------------------+ Best States ------------- Heat Dissipation 35 Energy Generation 14 Energy Capacity 160 Matter Stores 300 Matter Capacity 300 Sight Range 18 Terrain Scan Density 10 Evasion (%) 50 Recoil Reduction 2 Item Schematics ----------------- None Robot Schematics ------------------ None Fabricated ------------ Nothing Alien Tech Used ----------------- None Achievements -------------- None Challenges ------------ None Game ------ Seed TitaniumAdvancedCannon Manual? 0 Play Time 00:21:52 Cumulative 412.0 hours Start 2021.07.20 @ 20:49:35 End 2021.07.21 @ 11:40:32 Sessions 3 Manual Loads 0 Difficulty Rogue Special Mode None Game No. 336 Rogue 336 Adventurer 0 Explorer 0 Win Type - Total 1 Types 0/0/0/1/0/0/0/0/0 Lore% 71 Gallery% 80 Achievement% 60 Wizard Run 0 Options --------- ASCII 0 Keyboard 1 Movement Numpad Keybinds 0 Fullscreen 1 Font 12/Terminus Map View 83x54 Tactical HUD 1 Map Filters NONE Filters NONE Steam 1 RUN: e44c5583-35de-4a2c-8695-7ff147218849